fUST/lending_fUST_20250827
["ID","MTS","AMOUNT","RATE_DAILY","PERIOD"]
[381639211,1756300260806,-4811.31,0.00022739,2]
[381639212,1756300260816,-480.0,0.00022739,2]
[381639213,1756300260825,-480.0,0.00022739,2]
[381639214,1756300260835,-480.0,0.00022739,2]
[381639215,1756300260844,-480.0,0.00022739,2]
[381639216,1756300260854,-480.0,0.00022739,2]
[381639217,1756300260863,-480.0,0.00022739,2]
[381639218,1756300260873,-892.28,0.00022739,2]
[381639219,1756300260883,-480.0,0.00022739,2]
[381639221,1756300260892,-648.11,0.00022739,2]
[381639222,1756300260902,-559.41616791,0.00022739,2]
[381639223,1756300260911,-480.0,0.00022739,2]
[381639224,1756300260921,-628.16,0.00022739,2]
[381639225,1756300260931,-480.0,0.00022739,2]
[381639227,1756300260940,-480.0,0.00022739,2]
[381639229,1756300260951,-480.0,0.00022739,2]
[381639231,1756300260960,-496.15,0.00022739,2]
[381639233,1756300260969,-520.69,0.00022739,2]
[381639235,1756300260979,-480.0,0.00022739,2]
[381639237,1756300260989,-700.56,0.00022739,2]
[381639239,1756300260999,-480.0,0.00022739,2]
[381639241,1756300261008,-482.40957526,0.00022739,2]
[381639243,1756300261018,-531.78,0.00022739,2]
[381639246,1756300261028,-480.0,0.00022739,2]
[381639248,1756300261037,-480.0,0.00022739,2]
[381639250,1756300261047,-480.0,0.00022739,2]
[381639251,1756300261056,-480.0,0.00022739,2]
[381639253,1756300261065,-416.26625217,0.00022739,2]
[381639255,1756300261075,-2061.31,0.00022739,2]
[381639257,1756300261084,-548.5,0.00022739,2]
[381639259,1756300261094,-480.0,0.00022739,2]
[381639261,1756300261103,-480.0,0.00022739,2]
[381639263,1756300261112,-598.63,0.00022739,2]
[381639265,1756300261122,-707.22,0.00022739,2]
[381639267,1756300261131,-592.64,0.00022739,2]
[381639269,1756300261141,-480.0,0.00022739,2]
[381639272,1756300261151,-480.0,0.00022739,2]
[381639274,1756300261163,-480.0,0.00022739,2]
[381639276,1756300261172,-480.0,0.00022739,2]
[381639278,1756300261182,-480.0,0.00022739,2]
[381639280,1756300261192,-480.0,0.00022739,2]
[381639282,1756300261203,-361.51437024,0.00022739,2]
[381639284,1756300261212,-480.0,0.00022739,2]
[381639286,1756300261221,-347.92218404,0.00022739,2]
[381639288,1756300261231,-480.0,0.00022739,2]
[381639290,1756300261241,-499.75,0.00022739,2]
[381639292,1756300261250,-500.0,0.00022739,2]
[381639294,1756300261259,-1499.56,0.00022739,2]
[381639296,1756300261269,-480.0,0.00022739,2]
[381639298,1756300261278,-536.82,0.00022739,2]
[381639300,1756300261288,-480.0,0.00022739,2]
[381639302,1756300261297,-480.0,0.00022739,2]
[381639304,1756300261307,-851.04,0.00022739,2]
[381639306,1756300261318,-480.0,0.00022739,2]
[381639308,1756300261334,-521.16996261,0.00022739,2]
[381639310,1756300261344,-480.0,0.00022739,2]
[381639312,1756300261354,-480.0,0.00022739,2]
[381639314,1756300261363,-621.12,0.00022739,2]
[381639316,1756300261373,-480.0,0.00022739,2]
[381639318,1756300261382,-480.0,0.00022739,2]
[381639320,1756300261392,-480.0,0.00022739,2]
[381639322,1756300261403,-480.0,0.00022739,2]
[381639324,1756300261413,-502.73,0.00022739,2]
[381639326,1756300261422,-540.63,0.00022739,2]
[381639328,1756300261431,-1154.23,0.00022739,2]
[381639330,1756300261441,-480.0,0.00022739,2]
[381639332,1756300261451,-480.0,0.00022739,2]
[381639334,1756300261460,-551.64,0.00022739,2]
[381639336,1756300261469,-269.83277598,0.00022739,2]
[381639338,1756300261479,-480.0,0.00022739,2]
[381639340,1756300261489,-480.0,0.00022739,2]
[381639342,1756300261498,-2209.59,0.00022739,2]
[381639344,1756300261507,-480.0,0.00022739,2]
[381639346,1756300261517,-480.0,0.00022739,2]
[381639348,1756300261526,-991.65,0.00022739,2]
[381639350,1756300261536,-480.0,0.00022739,2]
[381639352,1756300261547,-480.0,0.00022739,2]
[381639354,1756300261561,-1168.45,0.00022739,2]
[381639356,1756300261576,-480.0,0.00022739,2]
[381639358,1756300261585,-480.0,0.00022739,2]
[381639360,1756300261595,-480.0,0.00022739,2]
[381639362,1756300261604,-687.72,0.00022739,2]
[381639364,1756300261614,-480.0,0.00022739,2]
[381639366,1756300261623,-480.0,0.00022739,2]
[381639368,1756300261633,-480.0,0.00022739,2]
[381639370,1756300261643,-480.0,0.00022739,2]
[381639372,1756300261653,-480.0,0.00022739,2]
[381639374,1756300261663,-1375.52,0.00022739,2]
[381639376,1756300261673,-609.53,0.00022739,2]
[381639378,1756300261683,-480.0,0.00022739,2]
[381639380,1756300261692,-480.0,0.00022739,2]
[381639382,1756300261702,-480.0,0.00022739,2]
[381639384,1756300261712,-480.0,0.00022739,2]
[381639386,1756300261721,-480.0,0.00022739,2]
[381639388,1756300261731,-629.17,0.00022739,2]
[381639390,1756300261741,-480.0,0.00022739,2]
[381639393,1756300261752,-480.0,0.00022739,2]
[381639395,1756300261763,-480.0,0.00022739,2]
[381639397,1756300261773,-879.01,0.00022739,2]
[381639399,1756300261782,-480.0,0.00022739,2]
[381639401,1756300261792,-480.0,0.00022739,2]
[381639403,1756300261803,-553.05,0.00022739,2]
[381639405,1756300261812,-151.0,0.00022739,7]
[381639407,1756300261822,-480.0,0.00022739,2]
[381639409,1756300261836,-511.27,0.00022739,2]
[381639411,1756300261846,-480.0,0.00022739,2]
[381639413,1756300261856,-480.0,0.00022739,2]
[381639415,1756300261866,-480.0,0.00022739,2]
[381639417,1756300261875,-480.0,0.00022739,2]
[381639419,1756300261885,-480.0,0.00022739,2]
[381639421,1756300261895,-480.0,0.00022739,2]
[381639423,1756300261905,-480.0,0.00022739,2]
[381639425,1756300261916,-198.11906859,0.00022739,2]
[381639427,1756300261926,-1185.91,0.00022739,2]
[381639429,1756300261935,-480.0,0.00022739,2]
[381639431,1756300261945,-1100.79,0.00022739,2]
[381639433,1756300261955,-480.0,0.00022739,2]
[381639435,1756300261964,-480.0,0.00022739,2]
[381639437,1756300261974,-480.0,0.00022739,2]
[381639439,1756300261983,-480.0,0.00022739,2]
[381639441,1756300261993,-480.0,0.00022739,2]
[381639443,1756300262003,-480.0,0.00022739,2]
[381639445,1756300262012,-674.82,0.00022739,2]
[381639447,1756300262022,-480.0,0.00022739,2]
[381639449,1756300262032,-480.0,0.00022739,2]
[381639451,1756300262042,-1582.66,0.00022739,2]
[381639453,1756300262051,-151.0,0.00022739,7]
[381639455,1756300262061,-480.0,0.00022739,2]
[381639457,1756300262071,-1441.98,0.00022739,2]
[381639459,1756300262080,-3079.94,0.00022739,2]
[381639461,1756300262090,-558.78,0.00022739,2]
[381639463,1756300262100,-480.0,0.00022739,2]
[381639465,1756300262110,-512.86,0.00022739,2]
[381639468,1756300262120,-1247.25,0.00022739,2]
[381639470,1756300262130,-535.83,0.00022739,2]
[381639472,1756300262139,-480.0,0.00022739,2]
[381639474,1756300262148,-619.84,0.00022739,2]
[381639476,1756300262158,-1012.69,0.00022739,2]
[381639478,1756300262170,-480.0,0.00022739,2]
[381639480,1756300262180,-480.0,0.00022739,2]
[381639482,1756300262190,-1558.31,0.00022739,2]
[381639484,1756300262199,-480.0,0.00022739,2]
[381639486,1756300262209,-575.32,0.00022739,2]
[381639488,1756300262219,-480.0,0.00022739,2]
[381639490,1756300262228,-480.0,0.00022739,2]
[381639492,1756300262238,-480.0,0.00022739,2]
[381639494,1756300262247,-480.0,0.00022739,2]
[381639496,1756300262257,-480.0,0.00022739,2]
[381639498,1756300262268,-480.0,0.00022739,2]
[381639500,1756300262278,-1467.04,0.00022739,2]
[381639502,1756300262299,-480.0,0.00022739,2]
[381639504,1756300262321,-1873.26,0.00022739,2]
[381639506,1756300262343,-480.0,0.00022739,2]
[381639508,1756300262365,-480.0,0.00022739,2]
[381639510,1756300262389,-480.0,0.00022739,2]
[381639512,1756300262411,-480.0,0.00022739,2]
[381639514,1756300262434,-480.0,0.00022739,2]
[381639516,1756300262455,-504.11,0.00022739,2]
[381639518,1756300262478,-480.0,0.00022739,2]
[381639520,1756300262502,-480.0,0.00022739,2]
[381639522,1756300262524,-508.08,0.00022739,2]
[381639524,1756300262547,-480.0,0.00022739,2]
[381639526,1756300262571,-480.0,0.00022739,2]
[381639528,1756300262593,-480.0,0.00022739,2]
[381639530,1756300262615,-480.0,0.00022739,2]
[381639532,1756300262632,-2486.85,0.00022739,2]
[381639534,1756300262642,-174.54860256,0.00022739,2]
[381639536,1756300262652,-480.0,0.00022739,2]
[381639538,1756300262662,-480.0,0.00022739,2]
[381639540,1756300262672,-480.0,0.00022739,2]
[381639542,1756300262682,-480.0,0.00022739,2]
[381639544,1756300262692,-7496.55,0.00022739,2]
[381639546,1756300262702,-480.0,0.00022739,2]
[381639548,1756300262713,-768.18,0.00022739,2]
[381639550,1756300262723,-151.0,0.00022739,7]
[381639552,1756300262734,-480.0,0.00022739,2]
[381639554,1756300262744,-820.29,0.00022739,2]
[381639556,1756300262754,-487.65,0.00022739,2]
[381639558,1756300262764,-480.0,0.00022739,2]
[381639560,1756300262774,-480.0,0.00022739,2]
[381639562,1756300262784,-480.0,0.00022739,2]
[381639564,1756300262794,-480.0,0.00022739,2]
[381639566,1756300262804,-1126.02,0.00022739,2]
[381639568,1756300262814,-480.0,0.00022739,2]
[381639570,1756300262824,-1019.66,0.00022739,2]
[381639573,1756300262834,-480.0,0.00022739,2]
[381639575,1756300262844,-153.47438,0.00022739,7]
[381639577,1756300262854,-4097.76,0.00022739,2]
[381639579,1756300262864,-480.0,0.00022739,2]
[381639581,1756300262875,-151.0,0.00022739,7]
[381639583,1756300262885,-1538.8,0.00022739,2]
[381639585,1756300262895,-480.0,0.00022739,2]
[381639587,1756300262905,-480.0,0.00022739,2]
[381639589,1756300262916,-553.39,0.00022739,2]
[381639591,1756300262926,-480.0,0.00022739,2]
[381639611,1756300263122,-151.0,0.00022739,7]
[381639613,1756300263132,-563.16,0.00022739,2]
[381639615,1756300263142,-480.0,0.00022739,2]
[381639617,1756300263151,-480.0,0.00022739,2]
[381639618,1756300263162,-866.73,0.00022739,2]
[381639619,1756300263179,-532.37,0.00022739,2]
[381639620,1756300263190,-480.0,0.00022739,2]
[381639621,1756300263200,-1089.92,0.00022739,2]
[381639622,1756300263211,-480.0,0.00022739,2]
[381639623,1756300263221,-480.0,0.00022739,2]
[381639624,1756300263231,-480.0,0.00022739,2]
[381639625,1756300263241,-480.0,0.00022739,2]
[381639626,1756300263250,-480.0,0.00022739,2]
[381639627,1756300263260,-480.0,0.00022739,2]
[381639628,1756300263271,-154.93904,0.00022739,7]
[381639629,1756300263281,-480.0,0.00022739,2]
[381639630,1756300263291,-619.83,0.00022739,2]
[381639631,1756300263300,-480.0,0.00022739,2]
[381639632,1756300263310,-480.0,0.00022739,2]
[381639633,1756300263319,-480.0,0.00022739,2]
[381639634,1756300263332,-1480.58,0.00022739,2]
[381639635,1756300263341,-480.0,0.00022739,2]
[381639636,1756300263351,-1080.29,0.00022739,2]
[381639637,1756300263361,-2783.48,0.00022739,2]
[381639638,1756300263372,-849.03,0.00022739,2]
[381639639,1756300263382,-3788.9,0.00022739,2]
[381639640,1756300263392,-1045.46,0.00022739,2]
[381639641,1756300263403,-527.62,0.00022739,2]
[381639642,1756300263413,-155.604161,0.00022739,7]
[381639643,1756300263425,-480.0,0.00022739,2]
[381639644,1756300263436,-480.0,0.00022739,2]
[381639645,1756300263448,-480.0,0.00022739,2]
[381639646,1756300263457,-1135.21,0.00022739,2]
[381639647,1756300263468,-1489.59,0.00022739,2]
[381639648,1756300263478,-480.0,0.00022739,2]
[381639649,1756300263488,-480.0,0.00022739,2]
[381639650,1756300263498,-480.0,0.00022739,2]
[381639651,1756300263509,-885.58,0.00022739,2]
[381639653,1756300263518,-1171.32,0.00022739,2]
[381639654,1756300263528,-480.0,0.00022739,2]
[381639656,1756300263538,-480.0,0.00022739,2]
[381639658,1756300263547,-506.58,0.00022739,2]
[381639660,1756300263557,-1373.52,0.00022739,2]
[381639662,1756300263566,-521.66,0.00022739,2]
[381639664,1756300263575,-994.97,0.00022739,2]
[381639665,1756300263586,-2291.1,0.00022739,2]
[381639668,1756300263596,-480.0,0.00022739,2]
[381639670,1756300263607,-4941.28,0.00022739,2]
[381639671,1756300263616,-836.96,0.00022739,2]
[381639673,1756300263626,-480.0,0.00022739,2]
[381639675,1756300263635,-805.85,0.00022739,2]
[381639677,1756300263645,-480.0,0.00022739,2]
[381639679,1756300263655,-480.0,0.00022739,2]
[381639681,1756300263664,-480.0,0.00022739,2]
[381639683,1756300263674,-584.58,0.00022739,2]
[381639685,1756300263685,-509.64,0.00022739,2]
[381639687,1756300263694,-480.0,0.00022739,2]
[381639689,1756300263704,-151.0,0.00022739,7]
[381639691,1756300263713,-826.49,0.00022739,2]
[381639693,1756300263723,-480.0,0.00022739,2]
[381639695,1756300263733,-480.0,0.00022739,2]
[381639697,1756300263743,-151.0,0.00022739,7]
[381639699,1756300263753,-480.0,0.00022739,2]
[381639701,1756300263764,-826.37,0.00022739,2]
[381639703,1756300263775,-642.66,0.00022739,2]
[381639705,1756300263787,-495.41,0.00022739,2]
[381639707,1756300263797,-647.14,0.00022739,2]
[381639709,1756300263807,-480.0,0.00022739,2]
[381639711,1756300263817,-480.0,0.00022739,2]
[381639713,1756300263827,-480.0,0.00022739,2]
[381639715,1756300263836,-480.0,0.00022739,2]
[381639717,1756300263846,-480.0,0.00022739,2]
[381639719,1756300263856,-713.97,0.00022739,2]
[381639721,1756300263866,-706.08,0.00022739,2]
[381639723,1756300263876,-151.0,0.00022739,7]
[381639725,1756300263885,-684.55,0.00022739,2]
[381639727,1756300263895,-1220.94,0.00022739,2]
[381639729,1756300263905,-562.5,0.00022739,2]
[381639731,1756300263914,-480.0,0.00022739,2]
[381639733,1756300263924,-480.0,0.00022739,2]
[381639735,1756300263933,-480.0,0.00022739,2]
[381639737,1756300263943,-480.0,0.00022739,2]
[381639739,1756300263953,-480.0,0.00022739,2]
[381639741,1756300263962,-480.0,0.00022739,2]
[381639743,1756300263972,-480.0,0.00022739,2]
[381639745,1756300263981,-650.16,0.00022739,2]
[381639747,1756300263991,-543.46,0.00022739,2]
[381639749,1756300264000,-151.0,0.0002279,7]
[381639751,1756300264009,-151.0,0.000228,9]
[381639753,1756300264020,-160.0,0.000228,2]
[381639755,1756300264029,-160.0,0.00023,2]
[381639757,1756300264039,-480.0,0.00023013,2]
[381639759,1756300264048,-484.65,0.00023013,2]
[381639761,1756300264058,-602.96,0.00023013,2]
[381639763,1756300264067,-480.0,0.00023013,2]
[381639765,1756300264076,-480.0,0.00023013,2]
[381639767,1756300264086,-602.45,0.00023013,2]
[381639769,1756300264096,-480.0,0.00023013,2]
[381639771,1756300264105,-151.0,0.00023013,7]
[381639773,1756300264114,-151.0,0.00023013,7]
[381639775,1756300264124,-480.0,0.00023013,2]
[381639777,1756300264134,-480.0,0.00023013,2]
[381639779,1756300264143,-480.0,0.00023013,2]
[381639781,1756300264153,-480.0,0.00023013,2]
[381639783,1756300264162,-480.0,0.00023013,2]
[381639785,1756300264173,-480.0,0.00023013,2]
[381639787,1756300264182,-480.0,0.00023013,2]
[381639789,1756300264192,-517.62,0.00023013,2]
[381639791,1756300264202,-151.0,0.00023013,7]
[381639793,1756300264212,-480.0,0.00023013,2]
[381639795,1756300264222,-480.0,0.00023013,2]
[381639798,1756300264234,-480.0,0.00023013,2]
[381639799,1756300264244,-480.0,0.00023013,2]
[381639801,1756300264254,-480.0,0.00023013,2]
[381639803,1756300264264,-480.0,0.00023013,2]
[381639806,1756300264274,-480.0,0.00023013,2]
[381639808,1756300264284,-863.12,0.00023013,2]
[381639810,1756300264294,-480.0,0.00023013,2]
[381639812,1756300264303,-602.59,0.00023013,2]
[381639814,1756300264313,-480.0,0.00023013,2]
[381639815,1756300264323,-480.0,0.00023013,2]
[381639818,1756300264333,-480.0,0.00023013,2]
[381639819,1756300264345,-225.35172686,0.00023013,2]
[381639821,1756300264355,-480.0,0.00023013,2]
[381639823,1756300264364,-710.45,0.00023013,2]
[381639825,1756300264373,-480.0,0.00023013,2]
[381639827,1756300264384,-480.0,0.00023013,2]
[381639830,1756300264395,-480.0,0.00023013,2]
[381639831,1756300264404,-480.0,0.00023013,2]
[381639834,1756300264414,-480.0,0.00023013,2]
[381639835,1756300264427,-480.0,0.00023013,2]
[381639837,1756300264436,-480.0,0.00023013,2]
[381639839,1756300264446,-480.0,0.00023013,2]
[381639841,1756300264455,-740.24,0.00023013,2]
[381639843,1756300264464,-480.0,0.00023013,2]
[381639845,1756300264473,-549.84,0.00023013,2]
[381639847,1756300264483,-480.0,0.00023013,2]
[381639849,1756300264492,-480.0,0.00023013,2]
[381639851,1756300264502,-480.0,0.00023013,2]
[381639853,1756300264512,-480.0,0.00023013,2]
[381639855,1756300264521,-480.0,0.00023013,2]
[381639857,1756300264531,-480.0,0.00023013,2]
[381639859,1756300264540,-480.0,0.00023013,2]
[381639861,1756300264549,-480.0,0.00023013,2]
[381639863,1756300264558,-1190.92,0.00023013,2]
[381639865,1756300264567,-480.0,0.00023013,2]
[381639867,1756300264577,-480.0,0.00023013,2]
[381639869,1756300264586,-653.11,0.00023013,2]
[381639871,1756300264597,-480.0,0.00023013,2]
[381639873,1756300264607,-701.02,0.00023013,2]
[381639875,1756300264616,-480.0,0.00023013,2]
[381639877,1756300264627,-480.0,0.00023013,2]
[381639879,1756300264636,-480.0,0.00023013,2]
[381639881,1756300264645,-480.0,0.00023013,2]
[381639883,1756300264655,-480.0,0.00023013,2]
[381639885,1756300264664,-561.6,0.00023013,2]
[381639887,1756300264676,-480.0,0.00023013,2]
[381639889,1756300264686,-536.08,0.00023013,2]
[381639891,1756300264696,-785.56,0.00023013,2]
[381639893,1756300264705,-707.7,0.00023013,2]
[381639895,1756300264715,-480.0,0.00023013,2]
[381639897,1756300264724,-480.0,0.00023013,2]
[381639899,1756300264733,-480.0,0.00023013,2]
[381639901,1756300264743,-480.0,0.00023013,2]
[381639903,1756300264752,-848.07,0.00023013,2]
[381639905,1756300264761,-480.0,0.00023013,2]
[381639907,1756300264771,-480.0,0.00023013,2]
[381639909,1756300264780,-480.0,0.00023013,2]
[381639911,1756300264789,-480.0,0.00023013,2]
[381639913,1756300264798,-480.0,0.00023013,2]
[381639915,1756300264808,-480.0,0.00023013,2]
[381639917,1756300264817,-151.0,0.00023013,7]
[381639919,1756300264826,-480.0,0.00023013,2]
[381639921,1756300264836,-480.0,0.00023013,2]
[381639923,1756300264845,-480.0,0.00023013,2]
[381639925,1756300264854,-480.0,0.00023013,2]
[381639927,1756300264864,-1132.16,0.00023013,2]
[381639929,1756300264873,-480.0,0.00023013,2]
[381639931,1756300264883,-480.0,0.00023013,2]
[381639933,1756300264892,-480.0,0.00023013,2]
[381639935,1756300264902,-668.2,0.00023013,2]
[381639937,1756300264911,-480.0,0.00023013,2]
[381639939,1756300264922,-480.0,0.00023013,2]
[381639941,1756300264932,-480.0,0.00023013,2]
[381639943,1756300264942,-592.01,0.00023013,2]
[381639945,1756300264952,-480.0,0.00023013,2]
[381639947,1756300264961,-480.0,0.00023013,2]
[381639949,1756300264971,-480.0,0.00023013,2]
[381639951,1756300264981,-480.0,0.00023013,2]
[381639953,1756300264991,-480.0,0.00023013,2]
[381639955,1756300265000,-480.0,0.00023013,2]
[381639957,1756300265010,-480.0,0.00023013,2]
[381639959,1756300265020,-480.0,0.00023013,2]
[381639961,1756300265029,-1077.95,0.00023013,2]
[381639963,1756300265039,-480.0,0.00023013,2]
[381639965,1756300265048,-480.0,0.00023013,2]
[381639967,1756300265058,-480.0,0.00023013,2]
[381639969,1756300265067,-480.0,0.00023013,2]
[381639971,1756300265076,-480.0,0.00023013,2]
[381639973,1756300265086,-480.0,0.00023013,2]
[381639975,1756300265095,-480.0,0.00023013,2]
[381639977,1756300265104,-480.0,0.00023013,2]
[381639979,1756300265113,-528.98,0.00023013,2]
[381639981,1756300265122,-480.0,0.00023013,2]
[381639982,1756300265132,-534.74,0.00023013,2]
[381639984,1756300265141,-557.3,0.00023013,2]
[381639987,1756300265153,-482.45,0.00023013,2]
[381639989,1756300265163,-480.0,0.00023013,2]
[381639991,1756300265174,-480.0,0.00023013,2]
[381639992,1756300265182,-622.33,0.00023013,2]
[381639994,1756300265192,-480.0,0.00023013,2]
[381639996,1756300265201,-480.0,0.00023013,2]
[381639998,1756300265210,-522.2,0.00023013,2]
[381640000,1756300265219,-480.0,0.00023013,2]
[381640002,1756300265229,-480.0,0.00023013,2]
[381640005,1756300265239,-480.0,0.00023013,2]
[381640007,1756300265249,-682.64,0.00023013,2]
[381640009,1756300265258,-480.0,0.00023013,2]
[381640011,1756300265269,-480.0,0.00023013,2]
[381640013,1756300265278,-480.0,0.00023013,2]
[381640015,1756300265287,-480.0,0.00023013,2]
[381640017,1756300265300,-480.0,0.00023013,2]
[381640019,1756300265312,-480.0,0.00023013,2]
[381640021,1756300265321,-480.0,0.00023013,2]
[381640023,1756300265331,-480.0,0.00023013,2]
[381640025,1756300265343,-480.0,0.00023013,2]
[381640027,1756300265352,-496.41,0.00023013,2]
[381640029,1756300265361,-480.0,0.00023013,2]
[381640031,1756300265370,-480.0,0.00023013,2]
[381640032,1756300265381,-480.0,0.00023013,2]
[381640034,1756300265390,-480.0,0.00023013,2]
[381640036,1756300265400,-961.54,0.00023013,2]
[381640038,1756300265410,-217.89953692,0.00023013,2]
[381640040,1756300265422,-480.0,0.00023013,2]
[381640042,1756300265432,-541.92,0.00023013,2]
[381640044,1756300265442,-480.0,0.00023013,2]
[381640046,1756300265451,-407.21055558,0.00023013,2]
[381640048,1756300265460,-489.46,0.00023013,2]
[381640050,1756300265469,-480.0,0.00023013,2]
[381640052,1756300265478,-480.0,0.00023013,2]
[381640054,1756300265487,-483.97,0.00023013,2]
[381640056,1756300265497,-572.57,0.00023013,2]
[381640058,1756300265506,-524.23,0.00023013,2]
[381640060,1756300265515,-480.0,0.00023013,2]
[381640062,1756300265524,-480.0,0.00023013,2]
[381640064,1756300265533,-787.06,0.00023013,2]
[381640066,1756300265543,-480.0,0.00023013,2]
[381640068,1756300265552,-518.41,0.00023013,2]
[381640070,1756300265561,-480.0,0.00023013,2]
[381640072,1756300265570,-480.0,0.00023013,2]
[381640074,1756300265579,-480.0,0.00023013,2]
[381640076,1756300265588,-480.0,0.00023013,2]
[381640078,1756300265597,-480.0,0.00023013,2]
[381640080,1756300265607,-739.43,0.00023013,2]
[381640082,1756300265616,-480.0,0.00023013,2]
[381640084,1756300265626,-480.0,0.00023013,2]
[381640086,1756300265635,-1255.57,0.00023013,2]
[381640088,1756300265645,-493.24,0.00023013,2]
[381640090,1756300265654,-480.0,0.00023013,2]
[381640092,1756300265664,-598.58,0.00023013,2]
[381640094,1756300265676,-480.0,0.00023013,2]
[381640096,1756300265685,-641.42,0.00023013,2]
[381640098,1756300265695,-480.0,0.00023013,2]
[381640100,1756300265704,-480.0,0.00023013,2]
[381640102,1756300265714,-728.84,0.00023013,2]
[381640104,1756300265723,-480.0,0.00023013,2]
[381640106,1756300265733,-480.0,0.00023013,2]
[381640108,1756300265742,-696.31,0.00023013,2]
[381640110,1756300265751,-480.0,0.00023013,2]
[381640112,1756300265761,-480.0,0.00023013,2]
[381640114,1756300265770,-600.0,0.00023013,2]
[381640116,1756300265779,-550.69,0.00023013,2]
[381640118,1756300265789,-480.0,0.00023013,2]
[381640119,1756300265798,-555.64,0.00023013,2]
[381640121,1756300265808,-480.0,0.00023013,2]
[381640123,1756300265818,-480.0,0.00023013,2]
[381640125,1756300265827,-480.0,0.00023013,2]
[381640127,1756300265836,-480.0,0.00023013,2]
[381640129,1756300265846,-480.0,0.00023013,2]
[381640131,1756300265855,-516.93,0.00023013,2]
[381640133,1756300265865,-480.0,0.00023013,2]
[381640135,1756300265874,-480.0,0.00023013,2]
[381640136,1756300265883,-480.0,0.00023013,2]
[381640137,1756300265892,-480.0,0.00023013,2]
[381640138,1756300265902,-480.0,0.00023013,2]
[381640139,1756300265911,-500.0,0.00023013,2]
[381640140,1756300265924,-480.0,0.00023013,2]
[381640141,1756300265933,-480.0,0.00023013,2]
[381640142,1756300265943,-4811.31,0.00023013,2]
[381640143,1756300265952,-480.0,0.00023013,2]
[381640145,1756300265962,-480.0,0.00023013,2]
[381640147,1756300265972,-480.0,0.00023013,2]
[381640149,1756300265981,-480.0,0.00023013,2]
[381640151,1756300265990,-480.0,0.00023013,2]
[381640153,1756300266000,-892.28,0.00023013,2]
[381640156,1756300266010,-480.0,0.00023013,2]
[381640158,1756300266020,-648.11,0.00023013,2]
[381640160,1756300266029,-480.0,0.00023013,2]
[381640162,1756300266039,-628.16,0.00023013,2]
[381640164,1756300266048,-480.0,0.00023013,2]
[381640166,1756300266058,-480.0,0.00023013,2]
[381640168,1756300266067,-480.0,0.00023013,2]
[381640170,1756300266076,-496.15,0.00023013,2]
[381640172,1756300266086,-520.69,0.00023013,2]
[381640174,1756300266095,-480.0,0.00023013,2]